bitfinex-derivatives/quotes_SOLF0:USTF0_20250110
["timestamp","ask_amount","ask_price","bid_price","bid_amount"]
[1736526026877,2.6848,186.26,186.2,7.19906072]
[1736526027071,19.91139948,186.33,186.2,7.19906072]
[1736526027273,4.7773,186.32,186.2,7.19906072]
[1736526027682,2.6849,186.26,186.19,2.6858]
[1736526028174,2.6846,186.28,186.16,2.6862]
[1736526028369,2.6846,186.28,186.15,19.91139948]
[1736526028370,19.91139948,186.3,186.15,19.91139948]
[1736526028574,19.91139948,186.3,186.12,27.1104602]
[1736526029178,19.91139948,186.3,186.15,19.91139948]
[1736526029471,5.66,186.31,186.18,19.91139948]
[1736526029980,2.6848,186.26,186.2,2.6856]
[1736526030165,5.66,186.31,186.18,19.91139948]
[1736526030379,2.685,186.25,186.19,2.6858]
[1736526030674,19.91139948,186.3,186.15,19.91139948]
[1736526032077,5.66,186.31,186.15,19.91139948]
[1736526033173,4.7773,186.32,186.18,19.91139948]
[1736526033376,4.7773,186.32,186.24,2.685]
[1736526033377,3.1118,186.32,186.24,2.685]
[1736526033877,2.6841,186.31,186.25,2.6848]
[1736526034278,5.66,186.37,186.21,19.91139948]
[1736526034469,5.66,186.37,186.24,19.91139948]
[1736526034871,5.66,186.37,186.21,19.91139948]
[1736526035176,2.6845,186.28,186.21,19.91139948]
[1736526035383,32.39050738,186.35,186.2,32.39050738]
[1736526035573,2.6839,186.32,186.25,2.6849]
[1736526035876,5.66,186.37,186.23,32.39050738]
[1736526036073,2.6838,186.33,186.28,2.6844]
[1736526036479,5.66,186.37,186.23,32.39050738]
[1736526036691,32.39050738,186.35,186.21,32.39050738]
[1736526036896,32.39050738,186.29,186.12,32.39050738]
[1736526037292,1.6487,186.28,186.12,32.39050738]
[1736526037590,32.39050738,186.32,186.16,32.39050738]
[1736526037883,2.6846,186.27,186.19,32.39050738]
[1736526038081,32.39050738,186.32,186.16,32.39050738]
[1736526038282,32.39050738,186.32,186.16,35.07660738]
[1736526038491,32.39050738,186.29,186.13,32.39050738]
[1736526038681,38.05050738,186.29,186.13,32.39050738]
[1736526038984,2.6854,186.22,186.16,2.6861]
[1736526039195,38.05050738,186.29,186.16,32.39050738]
[1736526039484,2.6848,186.26,186.21,2.6855]
[1736526039680,32.39050738,186.35,186.19,32.39050738]
[1736526039885,38.05050738,186.35,186.19,32.39050738]
[1736526040191,32.39050738,186.32,186.16,32.39050738]
[1736526040387,2.6848,186.26,186.16,32.39050738]
[1736526040986,2.6848,186.26,186.2,2.6855]
[1736526041187,2.6848,186.26,186.16,32.39050738]
[1736526041697,32.39050738,186.29,186.12,32.39050738]
[1736526041877,3.133,186.28,186.12,32.39050738]
[1736526042485,3.133,186.28,186.24,2.685]
[1736526042690,3.133,186.28,186.19,32.39050738]
[1736526042889,5.8176,186.28,186.19,32.39050738]
[1736526043087,5.8176,186.28,186.23,2.6851]
[1736526043290,3.133,186.28,186.19,32.39050738]
[1736526044084,2.6847,186.27,186.19,32.39050738]
[1736526044488,1.515,186.28,186.16,32.39050738]
[1736526044489,2.6852,186.23,186.16,32.39050738]
[1736526044782,1.515,186.28,186.16,32.39050738]
[1736526045188,2.6849,186.26,186.16,32.39050738]
[1736526045584,2.6849,186.26,186.21,2.6854]
[1736526045791,2.685,186.25,186.21,2.6854]
[1736526046091,1.515,186.28,186.16,32.39050738]
[1736526046291,4.1995,186.28,186.16,32.39050738]
[1736526046499,1.515,186.28,186.16,32.39050738]
[1736526046888,2.6849,186.26,186.16,32.39050738]
[1736526048090,1.515,186.28,186.22,2.6852]
[1736526048293,1.515,186.28,186.16,32.39050738]
[1736526048692,1.515,186.28,186.19,2.6857]
[1736526048895,1.515,186.28,186.13,32.39050738]
[1736526049090,1.515,186.28,186.16,32.39050738]
[1736526050092,2.6849,186.26,186.16,32.39050738]
[1736526050292,1.515,186.28,186.16,32.39050738]
[1736526050596,1.515,186.28,186.13,38.03050738]
[1736526050990,2.6855,186.22,186.18,2.6859]
[1736526051190,2.6855,186.22,186.13,38.03050738]
[1736526051500,2.6853,186.23,186.19,2.6857]
[1736526051986,2.6854,186.22,186.19,2.6857]
[1736526052195,2.6854,186.22,186.18,2.6859]
[1736526052396,1.515,186.28,186.13,38.03050738]
[1736526052791,2.6853,186.23,186.19,2.6857]
[1736526052995,1.515,186.28,186.13,38.03050738]
[1736526053398,1.515,186.28,186.16,32.39050738]
[1736526053693,32.39050738,186.32,186.16,32.39050738]
[1736526054196,32.39050738,186.29,186.13,67.11231284]
[1736526054398,2.685,186.25,186.18,2.6859]
[1736526054697,1.5269,186.28,186.13,67.11231284]
[1736526054899,2.6851,186.24,186.21,2.6854]
[1736526055094,1.5269,186.28,186.16,32.39050738]
[1736526055499,32.39050738,186.32,186.16,32.39050738]
[1736526055689,33.91030738,186.32,186.16,32.39050738]
[1736526055892,2.685,186.25,186.18,2.6858]
[1736526056094,32.39050738,186.29,186.13,38.03050738]
[1736526056294,32.39050738,186.29,186.13,39.5895681]
[1736526056603,32.39050738,186.29,186.13,45.2295681]
[1736526056909,33.91030738,186.32,186.16,32.39050738]
[1736526057103,33.91030738,186.32,186.22,2.6852]
[1736526057300,19.94024575,186.31,186.22,2.6852]
[1736526058392,19.94024575,186.31,186.2,2.6856]
[1736526058596,19.94024575,186.31,186.15,19.94024575]
[1736526059597,19.94024575,186.31,186.21,2.6854]
[1736526059808,19.94024575,186.31,186.15,19.94024575]
[1736526060302,2.685,186.25,186.15,19.94024575]
[1736526060605,2.6842,186.3,186.27,2.6846]
[1736526060804,1.6136,186.33,186.21,19.94024575]
[1736526060997,1.6136,186.33,186.18,19.94024575]
[1736526061199,2.6844,186.29,186.25,2.6848]
[1736526061399,2.6844,186.29,186.18,19.94024575]
[1736526062202,2.6844,186.29,186.19,12.00419465]
[1736526062401,2.6844,186.29,186.25,2.6848]
[1736526062608,2.6849,186.26,186.19,12.00419465]
[1736526062800,19.94024575,186.31,186.19,9.88476072]
[1736526063005,1.6401,186.3,186.19,7.19906072]
[1736526063200,2.6856,186.2,186.19,7.19906072]
[1736526063805,2.6856,186.2,186.14,7.19906072]
[1736526064005,19.94024575,186.28,186.17,2.6861]
[1736526064598,2.685,186.25,186.17,2.6861]
[1736526064799,19.94024575,186.28,186.17,2.6861]
[1736526065102,2.685,186.25,186.17,2.6861]
[1736526065305,19.94024575,186.28,186.17,2.6861]
[1736526065804,19.94024575,186.28,186.12,19.94024575]
[1736526066003,1.6401,186.3,186.15,19.94024575]
[1736526066206,1.6401,186.3,186.1,29.08180546]
[1736526066207,1.6401,186.3,186.18,19.94024575]
[1736526066400,5.64,186.32,186.18,25.58024575]
[1736526066606,1.5856,186.34,186.21,19.94024575]
[1736526067011,1.5856,186.34,186.28,2.6844]
[1736526067206,1.5856,186.34,186.21,19.94024575]
[1736526068109,2.6842,186.31,186.24,2.685]
[1736526068308,1.5856,186.34,186.24,2.685]
[1736526068612,2.6844,186.29,186.26,2.6848]
[1736526069002,2.6844,186.29,186.21,19.94024575]
[1736526069208,2.6844,186.29,186.24,2.685]
[1736526069506,1.5856,186.34,186.24,2.685]
[1736526069507,2.6845,186.28,186.24,2.685]
[1736526070110,1.5856,186.34,186.21,19.94024575]
[1736526070312,1.5856,186.34,186.23,2.6851]
[1736526070709,2.6843,186.3,186.21,19.94024575]
[1736526070909,8.16070581,186.36,186.24,19.94024575]
[1736526071212,3.2557,186.4,186.27,19.94024575]
[1736526071706,23.19594575,186.4,186.24,19.94024575]
[1736526071907,0.85719674,186.39,186.27,2.6845]
[1736526072215,0.85724144,186.38,186.24,19.94024575]
[1736526072404,2.6836,186.35,186.31,2.684]
[1736526072600,3.2557,186.4,186.27,19.94024575]
[1736526073006,23.19594575,186.4,186.24,19.94024575]
[1736526073204,0.85719061,186.39,186.24,19.94024575]
[1736526073407,23.19594575,186.4,186.24,19.94024575]
[1736526073610,0.85720528,186.39,186.24,19.94024575]
[1736526073809,0.85720528,186.39,186.21,27.13930647]
[1736526073810,19.94024575,186.37,186.21,27.13930647]
[1736526074106,19.94024575,186.33,186.21,9.88446072]
[1736526074414,0.8572855,186.32,186.21,2.6854]
[1736526074607,2.6852,186.24,186.2,2.6856]
[1736526074809,19.94024575,186.3,186.17,7.19906072]
[1736526075010,19.94024575,186.27,186.17,7.19906072]
[1736526075217,2.6859,186.18,186.17,7.19906072]
[1736526075413,19.94024575,186.27,186.12,185.02850834]
[1736526075414,19.94024575,186.27,186.13,7.19906072]
[1736526075615,2.6856,186.21,186.13,7.19906072]
[1736526075908,19.94024575,186.28,186.13,7.19906072]
[1736526076119,19.94024575,186.28,186.12,19.94024575]
[1736526076304,8.16056005,186.3,186.15,19.94024575]
[1736526076511,8.16056005,186.3,186.18,19.94024575]
[1736526076837,2.6845,186.29,186.23,2.6851]
[1736526077006,3.1213,186.31,186.18,19.94024575]
[1736526077210,23.06154575,186.31,186.15,19.94024575]
[1736526077815,0.85763071,186.3,186.15,19.94024575]
[1736526078010,0.85770405,186.29,186.15,19.94024575]
[1736526078315,23.06154575,186.31,186.15,19.94024575]
[1736526078514,2.6853,186.23,186.18,2.6859]
[1736526078914,2.6853,186.23,186.19,2.6858]
[1736526079119,2.6853,186.23,186.15,19.94024575]
[1736526079711,23.06154575,186.31,186.15,19.94024575]
[1736526079932,19.94024575,186.28,186.12,19.94024575]
[1736526080114,19.94024575,186.28,186.17,2.6859]
[1736526080715,19.94024575,186.25,186.12,19.94024575]
[1736526080913,19.94024575,186.25,186.09,19.94024575]
[1736526081107,5.64,186.26,186.09,19.94024575]
[1736526081108,19.94024575,186.22,186.09,19.94024575]
[1736526081322,3.2055,186.21,186.09,19.94024575]
[1736526082110,3.2055,186.21,186.06,19.94024575]
[1736526082704,3.2055,186.21,186.1,2.6871]
[1736526083115,2.6862,186.17,186.12,2.6867]
[1736526083316,3.2055,186.21,186.12,2.6867]
[1736526083523,3.2055,186.21,186.09,19.94024575]
[1736526083916,3.2055,186.21,186.06,19.94024575]
[1736526084111,3.2055,186.21,186.09,2.6872]
[1736526084112,2.6862,186.16,186.09,2.6872]
[1736526084312,19.94024575,186.2,186.09,2.6872]
[1736526084520,19.94024575,186.2,186.04,148.56462341]
[1736526084714,2.6869,186.12,186.07,2.6874]
[1736526085112,19.94024575,186.2,186.04,148.56462341]
[1736526085623,3.2055,186.21,186.06,19.94024575]
[1736526085818,19.94024575,186.2,186.1,2.6871]
[1736526086017,19.94024575,186.2,186.04,148.56462341]
[1736526086224,0.85819866,186.19,186.04,148.56462341]
[1736526086516,19.94024575,186.17,186.04,148.56462341]
[1736526086830,0.85836084,186.16,186.04,60.60462341]
[1736526087125,19.94024575,186.14,186.02,6.03390891]
[1736526087615,19.94024575,186.11,185.99,7.19906072]
[1736526087824,3.2248,186.1,185.99,7.19906072]
[1736526088013,2.6878,186.06,185.99,7.19906072]
[1736526088211,19.94024575,186.08,185.99,9.88766072]
[1736526088413,19.94024575,186.08,185.94,19.94024575]
[1736526088813,2.688,186.04,185.94,19.94024575]
[1736526089013,8.8648,186.1,185.94,19.94024575]
[1736526089218,8.8648,186.1,185.99,2.6887]
[1736526089423,19.94024575,186.08,185.91,19.94024575]
[1736526089715,2.6888,185.99,185.93,2.6894]
[1736526089913,2.6888,185.99,185.91,19.94024575]
[1736526090314,2.6888,185.99,185.93,2.6895]
[1736526090510,2.6888,185.99,185.91,19.94024575]
[1736526090815,1.5808,186.07,185.91,19.94024575]
[1736526091817,1.5808,186.07,185.94,19.94024575]
[1736526092022,3.2248,186.1,185.97,19.94024575]
[1736526092215,3.2248,186.1,185.94,19.94024575]
[1736526092415,1.5809,186.09,185.94,19.94024575]
[1736526092719,2.6885,186.01,185.96,2.689]
[1736526092919,1.5809,186.09,185.92,5.64]
[1736526093214,19.94024575,186.05,185.92,5.64]
[1736526093412,19.94024575,186.05,185.9,88.0]
[1736526093618,19.94024575,186.02,185.9,88.0]
[1736526093815,2.6892,185.96,185.91,2.6897]
[1736526094020,4.7558,186.01,185.88,19.94024575]
[1736526094918,2.689,185.97,185.91,2.6897]
[1736526095117,4.7558,186.01,185.88,19.94024575]
[1736526095728,2.689,185.98,185.88,19.94024575]
[1736526095917,4.7558,186.01,185.88,19.94024575]
[1736526096223,2.6889,185.98,185.93,2.6894]
[1736526096422,4.7558,186.01,185.88,19.94024575]
[1736526096820,2.689,185.97,185.93,2.6895]
[1736526097128,19.94024575,185.99,185.85,19.94024575]
[1736526097724,19.94024575,186.03,185.85,19.94024575]
[1736526098422,19.94024575,186.03,185.88,19.94024575]
[1736526098721,2.6883,186.02,185.98,2.6888]
[1736526098927,4.7517,186.05,185.98,2.6888]
[1736526099221,2.6883,186.02,185.98,2.6888]
[1736526099427,2.6883,186.02,185.97,2.6889]
[1736526099627,4.7517,186.05,185.91,19.94024575]
[1736526099927,2.6887,185.99,185.93,2.6895]
[1736526100140,19.94024575,186.03,185.88,19.94024575]
[1736526100332,4.7517,186.05,185.88,19.94024575]
[1736526100728,19.94024575,186.03,185.88,19.94024575]
[1736526101132,2.6893,185.95,185.85,25.58024575]
[1736526101331,19.94024575,185.97,185.8,6.04083953]
[1736526101525,23.14494575,185.94,185.8,6.04083953]
[1736526102932,2.6908,185.85,185.8,6.04083953]
[1736526103531,19.94024575,185.91,185.8,6.04083953]
[1736526103730,23.14494575,185.94,185.8,6.04083953]
[1736526104132,2.6906,185.86,185.81,2.6913]
[1736526104333,19.94024575,185.91,185.8,6.04083953]
[1736526104934,2.6908,185.85,185.8,8.73213953]
[1736526105140,19.94024575,185.91,185.8,6.04083953]
[1736526105338,2.6909,185.84,185.79,2.6916]
[1736526105532,19.94024575,185.91,185.76,19.94024575]
[1736526105931,19.94024575,185.91,185.8,2.6913]
[1736526106236,3.2047,185.94,185.73,19.94024575]
[1736526106237,19.94024575,185.88,185.73,19.94024575]
[1736526106437,2.6911,185.83,185.78,2.6916]
[1736526106735,1.6019,185.87,185.76,19.94024575]
[1736526107132,2.6908,185.85,185.8,2.6913]
[1736526107440,1.6019,185.87,185.76,19.94024575]
[1736526107731,23.14494575,185.94,185.79,19.94024575]
[1736526108134,23.14494575,185.94,185.8,2.6914]
[1736526108135,2.6908,185.85,185.8,2.6914]
[1736526108938,2.6908,185.85,185.81,2.6913]
[1736526109356,1.5906,185.9,185.76,19.94024575]
[1736526109742,1.5906,185.9,185.79,19.94024575]
[1736526110047,4.2806,185.9,185.86,2.6905]
[1736526110343,3.2047,185.94,185.82,19.94024575]
[1736526110546,2.6898,185.92,185.88,2.6902]
[1736526110850,1.5736,185.94,185.85,19.94024575]
[1736526111044,1.5183,185.99,185.85,19.94024575]
[1736526112452,2.6898,185.91,185.87,2.6903]
[1736526113045,2.69,185.9,185.86,2.6905]
[1736526113245,19.94024575,185.97,185.86,2.6905]
[1736526113746,2.6899,185.91,185.87,2.6904]
[1736526114151,2.6897,185.92,185.88,2.6902]
[1736526114648,19.94024575,185.97,185.82,19.94024575]
[1736526114854,19.94024575,185.94,185.79,19.94024575]
[1736526115048,3.2978,185.93,185.79,19.94024575]
[1736526115254,2.6907,185.86,185.76,19.94024575]
[1736526115563,3.2978,185.93,185.76,19.94024575]
[1736526116154,2.6905,185.87,185.83,2.691]
[1736526116452,3.2978,185.93,185.76,19.94024575]
[1736526116658,2.6904,185.88,185.84,2.6908]
[1736526117052,3.2978,185.93,185.76,25.58024575]
[1736526117354,2.6907,185.86,185.76,25.58024575]
[1736526117586,19.94024575,185.91,185.76,19.94024575]
[1736526117758,1.6294,185.9,185.76,19.94024575]
[1736526117956,2.6911,185.83,185.79,2.6915]
[1736526118351,1.6294,185.9,185.76,19.94024575]
[1736526118755,1.6294,185.9,185.79,19.94024575]
[1736526119149,2.6905,185.87,185.82,2.6911]
[1736526119348,1.6294,185.9,185.79,19.94024575]
[1736526119651,1.6294,185.9,185.76,19.94024575]
[1736526120156,2.6907,185.86,185.82,2.691]
[1736526120358,1.6294,185.9,185.76,19.94024575]
[1736526121059,2.6906,185.86,185.82,2.6911]
[1736526121258,1.6294,185.9,185.76,19.94024575]
[1736526121469,1.6294,185.9,185.79,19.94024575]
[1736526121660,2.6908,185.85,185.81,2.6912]
[1736526121958,2.6908,185.85,185.76,19.94024575]
[1736526122157,2.6906,185.86,185.83,2.691]
[1736526122357,2.6906,185.86,185.76,27.13930647]
[1736526122547,1.6294,185.9,185.76,27.13930647]
[1736526123056,1.6294,185.9,185.76,7.19906072]
[1736526123257,1.6294,185.9,185.8,2.6914]
[1736526124055,2.6909,185.84,185.8,2.6914]
[1736526124364,1.6294,185.9,185.79,19.94024575]
[1736526125061,2.6901,185.9,185.79,19.94024575]
[1736526125254,3.2978,185.93,185.79,27.13930647]
[1736526125454,2.6901,185.89,185.84,2.6908]
[1736526125655,3.2978,185.93,185.79,27.13930647]
[1736526125859,3.2978,185.93,185.82,19.94024575]
[1736526126061,2.6902,185.89,185.85,2.6907]
[1736526126258,2.6902,185.89,185.82,19.94024575]
[1736526126558,2.6903,185.88,185.79,68.2253489]
[1736526126764,23.23804575,185.93,185.79,39.79080315]
[1736526127058,2.6905,185.87,185.79,39.79080315]
[1736526127265,19.94024575,185.9,185.79,39.79080315]
[1736526127453,19.94024575,185.9,185.73,19.94024575]
[1736526127653,1.5817,185.89,185.73,19.94024575]
[1736526128461,1.5817,185.89,185.81,2.6913]
[1736526128661,1.5817,185.89,185.76,19.94024575]
[1736526129061,2.6904,185.88,185.84,2.6908]
[1736526129254,1.5817,185.89,185.84,2.6908]
[1736526129965,2.6903,185.88,185.85,2.6907]
[1736526130164,2.6903,185.88,185.76,19.94024575]
[1736526130662,2.6903,185.88,185.84,2.6908]
[1736526130863,2.6903,185.88,185.79,19.94024575]
[1736526131065,2.6901,185.89,185.79,19.94024575]
[1736526131365,1.674,185.93,185.82,19.94024575]
[1736526131655,2.6897,185.92,185.82,19.94024575]
[1736526131855,1.674,185.93,185.82,19.94024575]
[1736526132256,2.6903,185.88,185.82,19.94024575]
[1736526132662,2.69,185.91,185.82,19.94024575]
[1736526132865,1.674,185.93,185.82,19.94024575]
[1736526133061,1.674,185.93,185.79,19.94024575]
[1736526133265,2.6903,185.88,185.79,19.94024575]
[1736526133766,2.6904,185.87,185.84,2.6907]
[1736526133967,2.6904,185.87,185.79,19.94024575]
[1736526134463,2.6904,185.87,185.81,2.6912]
[1736526134662,2.6904,185.87,185.79,19.94024575]
[1736526134855,2.6909,185.84,185.76,19.94024575]
[1736526135159,2.6909,185.84,185.8,2.6913]
[1736526135655,1.5125,185.9,185.8,2.6913]
[1736526135863,21.45274575,185.9,185.73,47.46299049]
[1736526136364,21.45274575,185.9,185.73,25.58024575]
[1736526136557,21.45274575,185.9,185.78,2.6916]
[1736526136558,2.6911,185.83,185.78,2.6916]
[1736526136755,19.94024575,185.87,185.78,2.6916]
[1736526136958,2.6909,185.84,185.78,2.6916]
[1736526137159,1.5523,185.86,185.78,2.6916]
[1736526137560,2.6912,185.82,185.78,2.6916]
[1736526138368,2.691,185.84,185.8,2.6914]
[1736526138766,1.5523,185.86,185.73,19.94024575]
[1736526139074,2.6911,185.83,185.79,2.6915]
[1736526139268,1.5523,185.86,185.79,2.6915]
[1736526140070,2.6912,185.82,185.79,2.6915]
[1736526140368,2.6912,185.82,185.78,2.6917]
[1736526140770,2.6909,185.84,185.73,19.94024575]
[1736526141067,1.5523,185.86,185.73,19.94024575]
[1736526141368,2.6912,185.82,185.78,2.6916]
[1736526141767,19.94024575,185.82,185.71,21.88274474]
[1736526141963,19.94024575,185.82,185.7,21.88274474]
[1736526142171,3.0996,185.81,185.72,2.6926]
[1736526143072,2.6917,185.79,185.72,2.6926]
[1736526143267,3.0996,185.81,185.67,88.16]
[1736526143464,3.0996,185.81,185.69,19.94024575]
[1736526143666,2.6914,185.8,185.69,19.94024575]
[1736526143865,2.6914,185.8,185.67,88.16]
[1736526143866,1.5523,185.86,185.81,2.6912]
[1736526144063,87.92356201,185.92,185.67,108.10024575]
[1736526144064,23.03984575,185.91,185.75,19.94024575]
[1736526144271,2.6903,185.88,185.78,19.94024575]
[1736526144462,23.03984575,185.91,185.78,19.94024575]
[1736526144664,23.03984575,185.91,185.75,25.58024575]
[1736526145869,23.03984575,185.91,185.83,2.6909]
[1736526146472,2.6905,185.87,185.82,2.6911]
[1736526146670,23.03984575,185.91,185.82,2.6911]
[1736526147170,2.6906,185.86,185.82,2.6911]
[1736526148673,19.94024575,185.88,185.75,5.64]
[1736526149161,2.6916,185.79,185.75,2.6921]
[1736526150272,7.181,185.87,185.71,19.94024575]
[1736526150462,27.12124575,185.87,185.71,19.94024575]
[1736526151067,27.12124575,185.87,185.68,5.64]
[1736526151266,19.94024575,185.84,185.68,5.64]
[1736526151468,1.5725,185.83,185.67,129.98299049]
[1736526151867,1.5725,185.83,185.72,2.6925]
[1736526151868,1.5987,185.82,185.72,2.6925]
[1736526152170,19.94024575,185.81,185.67,129.98299049]
[1736526152365,19.94024575,185.81,185.7,2.6929]
[1736526152563,2.6923,185.75,185.65,21.88274474]
[1736526152968,2.6918,185.78,185.73,2.6924]
[1736526153172,1.5987,185.82,185.67,19.94024575]
[1736526153480,1.5987,185.82,185.77,2.6919]
[1736526153672,1.5987,185.82,185.7,19.94024575]
[1736526154065,1.5987,185.82,185.76,2.6919]
[1736526154276,2.6921,185.76,185.67,21.88274474]
[1736526154479,1.5987,185.82,185.67,21.88274474]
[1736526154769,2.6926,185.73,185.67,21.88274474]
[1736526155074,5.64,185.77,185.63,19.94024575]
[1736526155280,2.6927,185.72,185.67,2.6933]
[1736526155575,7.2389,185.77,185.63,19.94024575]
[1736526156067,1.5987,185.82,185.67,19.94024575]
[1736526156586,2.6919,185.78,185.74,2.6923]
[1736526156787,1.5987,185.82,185.67,19.94024575]
[1736526156968,1.5987,185.82,185.7,19.94024575]
[1736526157180,1.5987,185.82,185.76,2.6919]
[1736526157374,1.5987,185.82,185.7,19.94024575]
[1736526157873,1.5725,185.83,185.73,19.94024575]
[1736526158266,4.2635,185.83,185.76,2.692]
[1736526158471,4.2635,185.83,185.73,19.94024575]
[1736526158675,1.5725,185.83,185.73,19.94024575]
[1736526159172,1.5725,185.83,185.7,19.94024575]
[1736526159670,2.6914,185.81,185.73,2.6923]
[1736526159979,1.5303,185.82,185.7,19.94024575]
[1736526160376,4.2216,185.82,185.77,2.6918]
[1736526160573,1.5303,185.82,185.7,19.94024575]
[1736526161118,2.6919,185.78,185.74,2.6923]
[1736526161172,1.5303,185.82,185.67,19.94024575]
[1736526161972,21.47054575,185.82,185.67,19.94024575]
[1736526162170,19.94024575,185.76,185.66,22.40544758]
[1736526162371,2.693,185.7,185.64,2.6937]
[1736526162573,5.64,185.72,185.63,22.40544758]
[1736526162780,5.64,185.74,185.63,22.40544758]
[1736526163080,8.7684,185.75,185.63,22.40544758]
[1736526163373,8.7684,185.75,185.63,19.94024575]
[1736526163571,1.5525,185.75,185.63,19.94024575]
[1736526163977,4.2448,185.75,185.7,2.6928]
[1736526164477,5.64,185.78,185.66,19.94024575]
[1736526164676,5.64,185.78,185.72,2.6926]
[1736526165473,2.6919,185.77,185.73,2.6924]
[1736526165676,2.6919,185.77,185.66,19.94024575]
[1736526165876,2.6919,185.77,185.72,2.6926]
[1736526166177,2.6921,185.76,185.72,2.6926]
[1736526166779,2.6917,185.78,185.74,2.6923]
[1736526166972,2.6917,185.78,185.66,19.94024575]
[1736526168076,2.6917,185.78,185.73,2.6924]
[1736526168972,4.2584,185.8,185.76,2.692]
[1736526169479,1.5303,185.82,185.77,2.6918]
[1736526169480,2.6913,185.81,185.77,2.6918]
[1736526169680,5.64,185.87,185.72,19.94024575]
[1736526169879,19.94024575,185.88,185.72,19.94024575]
[1736526170071,2.6908,185.85,185.81,2.6913]
[1736526170384,3.1664,185.89,185.75,19.94024575]
[1736526170775,2.6905,185.87,185.82,2.691]
[1736526170979,3.1664,185.89,185.75,19.94024575]
[1736526171169,2.6907,185.85,185.79,2.6915]
[1736526171517,3.1664,185.89,185.7,22.40544758]
[1736526171518,19.94024575,185.82,185.7,22.40544758]
[1736526171673,2.6925,185.73,185.7,22.40544758]
[1736526171879,2.6925,185.73,185.69,2.693]
[1736526172079,19.94024575,185.79,185.67,22.40544758]
[1736526172289,2.6922,185.75,185.71,2.6927]
[1736526172579,10.4329,185.81,185.67,22.40544758]
[1736526172981,4.8129,185.81,185.71,2.6926]
[1736526173171,5.62,185.8,185.71,2.6926]
[1736526173372,2.6919,185.77,185.72,2.6925]
[1736526173769,5.62,185.8,185.68,19.94024575]
[1736526173980,2.6917,185.78,185.73,2.6923]
[1736526174580,2.6916,185.79,185.68,19.94024575]
[1736526174883,21.16852189,185.93,185.71,19.94024575]
[1736526174884,5.62,185.84,185.71,19.94024575]
[1736526175084,2.6913,185.81,185.77,2.6918]
[1736526175387,2.6913,185.81,185.71,19.94024575]
[1736526175782,2.691,185.83,185.71,19.94024575]
[1736526176385,2.6911,185.82,185.78,2.6916]
[1736526177188,19.94024575,185.83,185.75,2.692]
[1736526177583,19.94024575,185.83,185.66,5.62]
[1736526177782,2.6915,185.8,185.66,5.62]
[1736526177977,19.94024575,185.83,185.66,5.62]
[1736526178178,2.6913,185.81,185.78,2.6917]
[1736526178376,19.94024575,185.83,185.68,19.94024575]
[1736526178781,19.94024575,185.83,185.68,25.56024575]
[1736526178977,19.94024575,185.8,185.77,2.6918]
[1736526179184,19.94024575,185.8,185.66,22.40544758]
[1736526179386,2.6917,185.78,185.69,2.693]
[1736526179583,2.6917,185.78,185.66,22.40544758]
[1736526179780,19.94024575,185.79,185.66,22.40544758]
[1736526179985,19.94024575,185.76,185.66,22.40544758]
[1736526180186,19.94024575,185.76,185.64,22.40544758]
[1736526180383,19.94024575,185.73,185.64,22.40544758]
[1736526180585,22.63274575,185.73,185.64,22.40544758]
[1736526180797,19.94024575,185.76,185.64,22.40544758]
[1736526181197,19.94024575,185.76,185.62,60.74796816]
[1736526181198,19.94024575,185.76,185.73,2.6924]
[1736526181485,19.94024575,185.76,185.62,60.74796816]
[1736526181785,2.6922,185.75,185.62,60.74796816]
[1736526181994,2.6922,185.75,185.63,4.82636634]
[1736526182182,19.94024575,185.73,185.63,4.82636634]
[1736526182388,19.94024575,185.7,185.63,4.82636634]
[1736526182583,19.94024575,185.7,185.62,83.15341574]
[1736526182584,19.94024575,185.7,185.62,60.74796816]
[1736526182793,19.94024575,185.7,185.61,22.40544758]
[1736526182794,19.94024575,185.7,185.63,2.6939]
[1736526183285,19.94024575,185.7,185.61,22.40544758]
[1736526183686,2.6936,185.65,185.59,2.6944]
[1736526183892,19.94024575,185.64,185.56,22.40544758]
[1736526184472,5.62,185.68,185.56,22.40544758]